[Event "19th IPCA WCC 2019"]
[Site "Ruzomberok"]
[Date "2019.06.30"]
[Round "3.20"]
[White "Engel, Katalin"]
[Black "Sovietova, Kateryna"]
[Result "0-1"]
[ECO "E61"]
[WhiteElo "1537"]
[BlackElo "1279"]
[Annotator "NA"]
[PlyCount "142"]
[EventDate "2019.06.28"]
[EventType "swiss"]
[EventCountry "SVK"]
[SourceTitle "playchess.com"]
[Source "ChessBase"]
[SourceQuality "1"]
[TimeControl "5400+30"]

1. d4 {[%emt 0:02:29]} Nf6 {[%emt 0:00:00]} 2. c4 {[%emt 0:00:34]} g6 {[%emt 0:00:04]} 3. Nc3 {[%emt 0:03:50]} Bg7 {[%emt 0:00:10]} 4. Nf3 {[%emt 0:00:22]} d6 {[%emt 0:00:34]} 5. Bg5 {[%emt 0:00:21]} O-O {[%emt 0:00:35]} 6. e4 {[%emt 0:00:21]} b6 {[%emt 0:02:44]} 7. Be2 {[%emt 0:00:14]} Bb7 {[%emt 0:00:17]} 8. d5 {[%emt 0:00:29]} Nbd7 {[%emt 0:01:42]} 9. O-O {[%emt 0:00:31]} Re8 {[%emt 0:02:33]} 10. Bd3 {[%emt 0:01:02]} a5 {[%emt 0:01:30]} 11. a4 {[%emt 0:00:45]} Nc5 {[%emt 0:04:11]} 12. Re1 {[%emt 0:05:07]} Nfd7 {[%emt 0:05:21]} 13. Bc2 {[%emt 0:01:11]} Ne5 {[%emt 0:02:47]} 14. Nd2 {[%emt 0:03:27]} Qd7 {[%emt 0:07:00]} 15. Re3 {[%emt 0:05:48]} e6 {[%emt 0:11:09]} 16. f4 {[%emt 0:01:23]} f6 {[%emt 0:03:01]} 17. fxe5 {[%emt 0:01:02]} fxg5 {[%emt 0:00:25]} 18. Nf3 {[%emt 0:02:27]} Qe7 {[%emt 0:06:19]} 19. Qe1 {[%emt 0:09:49]} g4 {[%emt 0:10:35]} 20. Nd2 {[%emt 0:10:00]} Bxe5 {[%emt 0:01:26]} 21. Qe2 {[%emt 0:03:59]} Bd4 {[%emt 0:03:35]} 22. Nf1 {[%emt 0:05:36]} Bxe3+ {[%emt 0:00:24]} 23. Qxe3 {[%emt 0:00:49]} e5 {[%emt 0:05:18]} 24. Ng3 {[%emt 0:02:11]} Rf8 {[%emt 0:01:07]} 25. Qe2 {[%emt 0:02:18]} Rf4 {[%emt 0:05:42]} 26. Rf1 {[%emt 0:01:45]} Rxf1+ {[%emt 0:02:16]} 27. Nxf1 {[%emt 0:00:19]} h5 {[%emt 0:02:24]} 28. Qe3 {[%emt 0:00:31]} Kg7 {[%emt 0:01:29]} 29. Ne2 {[%emt 0:07:31]} Rf8 {[%emt 0:00:34]} 30. Nfg3 {[%emt 0:00:40]} Bc8 {[%emt 0:01:08]} 31. Qc3 {[%emt 0:09:34]} Rf7 {[%emt 0:02:45]} 32. b4 {[%emt 0:00:29]} axb4 {[%emt 0:01:16]} 33. Qxb4 {[%emt 0:00:19]} Qf8 {[%emt 0:01:31]} 34. Qe1 {[%emt 0:00:48]} Bd7 {[%emt 0:02:01]} 35. a5 {[%emt 0:00:18]} bxa5 {[%emt 0:00:55]} 36. Qxa5 {[%emt 0:00:19]} h4 {[%emt 0:03:49]} 37. Qd2 {[%emt 0:00:43]} hxg3 {[%emt 0:00:54]} 38. Nxg3 {[%emt 0:00:10]} Qe7 {[%emt 0:03:20]} 39. Qe2 {[%emt 0:02:24]} Bc8 {[%emt 0:01:27]} 40. Qd2 {[%emt 0:02:18]} Nd7 {[%emt 0:00:33]} 41. Bd1 {[%emt 0:00:40]} Nf6 {[%emt 0:00:20]} 42. Qg5 {[%emt 0:01:54]} Qf8 {[%emt 0:02:25]} 43. c5 {[%emt 0:02:21]} dxc5 {[%emt 0:00:14]} 44. Qxe5 {[%emt 0:00:14]} c4 {[%emt 0:00:55]} 45. Kf2 {[%emt 0:00:24]} Qc5+ {[%emt 0:00:28]} 46. Ke1 {[%emt 0:00:47]} Kf8 {[%emt 0:01:24]} 47. Ne2 {[%emt 0:01:59]} Qb4+ {[%emt 0:01:18]} 48. Qc3 {[%emt 0:01:37]} Qxc3+ {[%emt 0:00:15]} 49. Nxc3 {[%emt 0:00:02]} Re7 {[%emt 0:00:19]} 50. Bc2 {[%emt 0:00:11]} Nh5 {[%emt 0:00:46]} 51. Kf2 {[%emt 0:00:38]} Rf7+ {[%emt 0:00:12]} 52. Ke3 {[%emt 0:00:51]} Rf6 {[%emt 0:00:21]} 53. Kd4 {[%emt 0:00:31]} Rf2 {[%emt 0:00:38]} 54. Ba4 {[%emt 0:01:29]} Rxg2 {[%emt 0:00:12]} 55. Kxc4 {[%emt 0:00:28]} Rxh2 {[%emt 0:00:09]} 56. e5 {[%emt 0:00:28]} g3 {[%emt 0:00:20]} 57. d6 {[%emt 0:00:41]} cxd6 {[%emt 0:00:09]} 58. exd6 {[%emt 0:00:03]} g2 {[%emt 0:00:12]} 59. Ne2 {[%emt 0:00:23]} Ba6+ {[%emt 0:00:21]} 60. Bb5 {[%emt 0:00:07]} Bc8 {[%emt 0:00:48]} 61. d7 {[%emt 0:00:35]} Bxd7 {[%emt 0:00:22]} 62. Bxd7 {[%emt 0:00:03]} Nf4 {[%emt 0:00:46]} 63. Nxf4 {[%emt 0:00:34]} g1=Q {[%emt 0:00:09]} 64. Ne6+ {[%emt 0:00:16]} Ke7 {[%emt 0:00:18]} 65. Nc5 {[%emt 0:00:40]} Qc1+ {[%emt 0:00:31]} 66. Kb5 {[%emt 0:00:10]} Rb2+ {[%emt 0:00:43]} 67. Kc6 {[%emt 0:00:16]} Rc2 {[%emt 0:00:19]} 68. Kb6 {[%emt 0:01:01]} Rxc5 {[%emt 0:00:14]} 69. Ba4 {[%emt 0:00:29]} Rc8 {[%emt 0:00:50]} 70. Bb5 {[%emt 0:00:18]} Qc7+ {[%emt 0:00:42]} 71. Ka6 {[%emt 0:00:10]} Ra8# {[%emt 0:00:15]} 0-1

[Event "19th IPCA WCC 2019"]
[Site "Ruzomberok"]
[Date "2019.06.30"]
[Round "3.21"]
[White "Wollner, Bohus"]
[Black "Spirka, Jan"]
[Result "1/2-1/2"]
[ECO "A40"]
[WhiteElo "1222"]
[BlackElo "1366"]
[Annotator "NA"]
[PlyCount "67"]
[EventDate "2019.06.28"]
[EventType "swiss"]
[EventCountry "SVK"]
[SourceTitle "playchess.com"]
[Source "ChessBase"]
[SourceQuality "1"]
[TimeControl "5400+30"]

1. d4 {[%emt 0:01:35]} e6 {[%emt 0:00:32]} 2. c4 {[%emt 0:00:12]} d6 {[%emt 0:01:15]} 3. Nc3 {[%emt 0:00:35]} Nf6 {[%emt 0:00:31]} 4. Bg5 {[%emt 0:00:34]} Be7 {[%emt 0:00:28]} 5. Nf3 {[%emt 0:01:47]} Nbd7 {[%emt 0:01:03]} 6. e3 {[%emt 0:01:02]} h6 {[%emt 0:00:52]} 7. Bh4 {[%emt 0:00:36]} O-O {[%emt 0:03:21]} 8. Be2 Nh7 {[%emt 0:02:12]} 9. Bxe7 {[%emt 0:03:25]} Qxe7 {[%emt 0:00:27]} 10. O-O {[%emt 0:00:35]} Rd8 {[%emt 0:04:57]} 11. Qc2 {[%emt 0:12:39]} Nhf6 {[%emt 0:02:07]} 12. Rad1 {[%emt 0:02:57]} Nf8 {[%emt 0:02:44]} 13. h3 {[%emt 0:03:34]} Bd7 {[%emt 0:02:18]} 14. Rfe1 {[%emt 0:01:46]} c6 {[%emt 0:05:45]} 15. b3 {[%emt 0:19:22]} a6 {[%emt 0:04:11]} 16. Bd3 {[%emt 0:11:29]} Rac8 {[%emt 0:06:42]} 17. e4 {[%emt 0:01:48]} Nh5 {[%emt 0:02:54]} 18. Ne2 {[%emt 0:03:02]} Ng6 {[%emt 0:00:53]} 19. e5 {[%emt 0:00:52]} Nf8 {[%emt 0:03:03]} 20. Ng3 {[%emt 0:01:06]} Nf4 {[%emt 0:00:47]} 21. Bf1 {[%emt 0:02:03]} d5 {[%emt 0:00:37]} 22. c5 {[%emt 0:00:18]} Be8 {[%emt 0:01:14]} 23. Ne2 {[%emt 0:00:21]} Nh5 {[%emt 0:05:40]} 24. Ng3 {[%emt 0:00:37]} Nxg3 {[%emt 0:01:08]} 25. fxg3 {[%emt 0:00:13]} f6 {[%emt 0:00:59]} 26. Bd3 {[%emt 0:01:48]} f5 {[%emt 0:00:45]} 27. Rf1 {[%emt 0:02:00]} Bg6 {[%emt 0:03:42]} 28. Qd2 {[%emt 0:00:57]} Nh7 {[%emt 0:01:20]} 29. Nh4 {[%emt 0:01:16]} Bh5 {[%emt 0:01:19]} 30. Nf3 {[%emt 0:00:16]} Bxf3 {[%emt 0:02:27]} 31. gxf3 {[%emt 0:00:27]} Rf8 {[%emt 0:04:43]} 32. f4 {[%emt 0:00:12]} h5 {[%emt 0:03:39]} 33. Be2 {[%emt 0:00:13]} g6 {[%emt 0:01:04]} 34. h4 {[%emt 0:01:08]} 1/2-1/2

[Event "19th IPCA WCC 2019"]
[Site "Ruzomberok"]
[Date "2019.06.30"]
[Round "3.22"]
[White "Frumin, Rebeka"]
[Black "Kostova, Erika"]
[Result "1/2-1/2"]
[ECO "C10"]
[WhiteElo "1398"]
[BlackElo "1210"]
[Annotator "NA"]
[PlyCount "136"]
[EventDate "2019.06.28"]
[EventType "swiss"]
[EventCountry "SVK"]
[SourceTitle "playchess.com"]
[Source "ChessBase"]
[SourceQuality "1"]
[TimeControl "5400+30"]

1. e4 {[%emt 0:00:00]} e6 {[%emt 0:00:00]} 2. d4 {[%emt 0:00:58]} d5 {[%emt 0:00:07]} 3. Nc3 {[%emt 0:01:06]} c5 {[%emt 0:00:36]} 4. Bb5+ {[%emt 0:02:34]} Bd7 {[%emt 0:00:46]} 5. Bxd7+ {[%emt 0:01:33]} Nxd7 {[%emt 0:00:23]} 6. exd5 {[%emt 0:01:25]} cxd4 {[%emt 0:01:40]} 7. Qxd4 {[%emt 0:05:19]} Bc5 {[%emt 0:00:56]} 8. Qxg7 {[%emt 0:01:54]} Qf6 {[%emt 0:01:48]} 9. Qxf6 {[%emt 0:00:13]} Ngxf6 {[%emt 0:00:17]} 10. dxe6 {[%emt 0:00:33]} fxe6 {[%emt 0:00:28]} 11. Nf3 {[%emt 0:01:29]} Bb4 {[%emt 0:03:27]} 12. Bd2 {[%emt 0:01:27]} O-O {[%emt 0:01:33]} 13. a3 {[%emt 0:01:02]} Bxc3 {[%emt 0:00:29]} 14. Bxc3 {[%emt 0:00:11]} Ne4 {[%emt 0:00:58]} 15. O-O {[%emt 0:01:34]} Nxc3 {[%emt 0:00:46]} 16. bxc3 {[%emt 0:00:10]} Rac8 {[%emt 0:01:22]} 17. Rfe1 {[%emt 0:00:32]} Rf6 {[%emt 0:02:03]} 18. Re3 {[%emt 0:01:22]} Nc5 {[%emt 0:02:21]} 19. Rd1 {[%emt 0:02:39]} Rc7 {[%emt 0:01:20]} 20. Rd8+ {[%emt 0:01:10]} Rf8 {[%emt 0:01:56]} 21. Rxf8+ {[%emt 0:00:26]} Kxf8 {[%emt 0:00:16]} 22. h3 {[%emt 0:00:41]} Re7 {[%emt 0:01:35]} 23. Ng5 {[%emt 0:01:31]} Kg7 {[%emt 0:00:51]} 24. Ne4 {[%emt 0:01:06]} Na4 {[%emt 0:01:55]} 25. Ng5 {[%emt 0:02:23]} e5 {[%emt 0:01:49]} 26. Ne4 {[%emt 0:01:17]} Re6 {[%emt 0:01:43]} 27. Rg3+ {[%emt 0:01:34]} Kh8 {[%emt 0:02:16]} 28. Rg4 {[%emt 0:02:10]} Nb6 {[%emt 0:01:38]} 29. Rg3 {[%emt 0:02:45]} Nc4 {[%emt 0:00:58]} 30. Ng5 {[%emt 0:00:40]} Re7 {[%emt 0:00:19]} 31. a4 {[%emt 0:00:34]} e4 {[%emt 0:02:55]} 32. h4 {[%emt 0:00:47]} h6 {[%emt 0:02:01]} 33. Nh3 {[%emt 0:00:17]} Kh7 {[%emt 0:02:07]} 34. Nf4 {[%emt 0:01:10]} Re5 {[%emt 0:01:23]} 35. Ne2 {[%emt 0:01:17]} Nd6 {[%emt 0:06:09]} 36. Nd4 {[%emt 0:01:51]} a6 {[%emt 0:01:18]} 37. Nb3 {[%emt 0:01:31]} Nf5 {[%emt 0:00:55]} 38. Rg4 {[%emt 0:01:28]} Nd6 {[%emt 0:06:19]} 39. Rf4 {[%emt 0:02:11]} Kg7 {[%emt 0:01:10]} 40. Rg4+ {[%emt 0:01:44]} Kh7 {[%emt 0:00:21]} 41. Rg3 {[%emt 0:02:32]} Nf5 {[%emt 0:00:44]} 42. Rh3 {[%emt 0:01:09]} h5 {[%emt 0:01:33]} 43. c4 {[%emt 0:00:53]} Kg6 {[%emt 0:01:06]} 44. c3 {[%emt 0:01:46]} Kf6 {[%emt 0:01:34]} 45. c5 {[%emt 0:02:21]} Rd5 {[%emt 0:03:24]} 46. Nd4 {[%emt 0:03:29]} Rxc5 {[%emt 0:01:39]} 47. Nxf5 {[%emt 0:00:12]} Rxf5 {[%emt 0:00:48]} 48. Re3 {[%emt 0:01:19]} Rf4 {[%emt 0:03:15]} 49. g3 {[%emt 0:00:27]} Rg4 {[%emt 0:00:29]} 50. Kf1 {[%emt 0:00:30]} Kf5 {[%emt 0:00:48]} 51. c4 {[%emt 0:00:20]} a5 {[%emt 0:00:50]} 52. f3 {[%emt 0:01:43]} exf3 {[%emt 0:01:12]} 53. Rxf3+ {[%emt 0:00:06]} Ke4 {[%emt 0:01:35]} 54. Kf2 {[%emt 0:00:56]} Ke5 {[%emt 0:00:51]} 55. Rb3 {[%emt 0:01:05]} Rxc4 {[%emt 0:00:56]} 56. Rb5+ {[%emt 0:00:07]} Ke4 {[%emt 0:00:38]} 57. Rxa5 {[%emt 0:00:50]} Rc2+ {[%emt 0:01:10]} 58. Ke1 {[%emt 0:00:44]} Kf3 59. Rxh5 {[%emt 0:00:25]} Kxg3 {[%emt 0:01:35]} 60. a5 {[%emt 0:00:22]} Rb2 {[%emt 0:00:36]} 61. Rh6 {[%emt 0:00:49]} Ra2 {[%emt 0:00:53]} 62. h5 {[%emt 0:01:23]} Rxa5 {[%emt 0:00:38]} 63. Rb6 {[%emt 0:00:33]} Rxh5 {[%emt 0:01:51]} 64. Rxb7 {[%emt 0:00:14]} Re5+ {[%emt 0:00:18]} 65. Kd2 {[%emt 0:00:22]} Kf3 {[%emt 0:00:16]} 66. Rb3+ {[%emt 0:00:13]} Kf4 {[%emt 0:00:29]} 67. Rb4+ {[%emt 0:00:20]} Re4 {[%emt 0:00:14]} 68. Rxe4+ {[%emt 0:00:07]} Kxe4 {[%emt 0:00:07]} 1/2-1/2

[Event "19th IPCA WCC 2019"]
[Site "Ruzomberok"]
[Date "2019.07.01"]
[Round "4.2"]
[White "Palin, Denis"]
[Black "Mukha, Nikolay"]
[Result "1/2-1/2"]
[ECO "A46"]
[WhiteElo "2180"]
[BlackElo "2159"]
[Annotator "NA"]
[PlyCount "95"]
[EventDate "2019.06.28"]
[EventType "swiss"]
[EventCountry "SVK"]
[SourceTitle "playchess.com"]
[Source "ChessBase"]
[SourceQuality "1"]
[TimeControl "5400+30"]

1. d4 {[%emt 0:00:00]} Nf6 {[%emt 0:00:00]} 2. Nf3 {[%emt 0:00:00]} c5 {[%emt 0:00:00]} 3. e3 {[%emt 0:00:07]} g6 {[%emt 0:01:57]} 4. Bd3 {[%emt 0:01:10]} Bg7 {[%emt 0:01:15]} 5. O-O {[%emt 0:01:57]} d6 {[%emt 0:01:42]} 6. dxc5 {[%emt 0:04:27]} dxc5 {[%emt 0:00:40]} 7. Bb5+ {[%emt 0:00:03]} Nbd7 {[%emt 0:01:30]} 8. Ne5 {[%emt 0:07:21]} O-O {[%emt 0:03:06]} 9. Nxd7 {[%emt 0:00:05]} Bxd7 {[%emt 0:01:31]} 10. Bxd7 {[%emt 0:00:06]} Qxd7 {[%emt 0:00:42]} 11. Nc3 {[%emt 0:04:00]} Qc6 {[%emt 0:04:53]} 12. Qe2 {[%emt 0:02:59]} Ne4 {[%emt 0:07:25]} 13. Nxe4 {[%emt 0:05:28]} Qxe4 {[%emt 0:00:02]} 14. f3 {[%emt 0:00:50]} Qc6 {[%emt 0:02:09]} 15. e4 {[%emt 0:04:54]} Rad8 {[%emt 0:00:19]} 16. Bg5 {[%emt 0:10:45]} Rd7 {[%emt 0:07:14]} 17. c3 {[%emt 0:09:11]} h6 {[%emt 0:04:56]} 18. Be3 {[%emt 0:01:14]} Rfd8 {[%emt 0:00:17]} 19. Rad1 {[%emt 0:01:01]} b6 {[%emt 0:00:45]} 20. Rxd7 {[%emt 0:06:28]} Qxd7 {[%emt 0:00:15]} 21. Qc4 {[%emt 0:01:46]} g5 {[%emt 0:05:36]} 22. a4 {[%emt 0:03:01]} Be5 {[%emt 0:01:53]} 23. g3 {[%emt 0:02:51]} Qh3 {[%emt 0:12:14]} 24. Qe2 {[%emt 0:01:22]} Qe6 {[%emt 0:00:18]} 25. Rd1 {[%emt 0:01:48]} Rd6 {[%emt 0:02:57]} 26. Rxd6 {[%emt 0:02:24]} Bxd6 {[%emt 0:06:35]} 27. c4 {[%emt 0:04:16]} Be5 {[%emt 0:03:32]} 28. b3 {[%emt 0:00:58]} Qd6 {[%emt 0:02:41]} 29. Kg2 {[%emt 0:00:39]} Bd4 {[%emt 0:01:05]} 30. Bd2 {[%emt 0:01:23]} Qe6 {[%emt 0:00:57]} 31. Qd3 {[%emt 0:03:36]} Kg7 {[%emt 0:01:06]} 32. f4 {[%emt 0:05:56]} f6 {[%emt 0:05:55]} 33. h3 {[%emt 0:01:29]} Qc6 {[%emt 0:01:59]} 34. Qf3 {[%emt 0:00:16]} a6 {[%emt 0:00:55]} 35. h4 {[%emt 0:01:52]} gxh4 {[%emt 0:05:30]} 36. Qg4+ {[%emt 0:01:43]} Kf8 {[%emt 0:01:14]} 37. f5 {[%emt 0:00:08]} hxg3 {[%emt 0:00:42]} 38. Kxg3 {[%emt 0:04:04]} Ke8 {[%emt 0:01:45]} 39. Bxh6 {[%emt 0:00:55]} Kd7 {[%emt 0:00:04]} 40. Kf3 {[%emt 0:01:59]} b5 {[%emt 0:05:15]} 41. axb5 {[%emt 0:00:59]} axb5 {[%emt 0:00:01]} 42. Qg8 {[%emt 0:00:24]} bxc4 {[%emt 0:00:21]} 43. bxc4 {[%emt 0:01:13]} Qa4 {[%emt 0:03:07]} 44. Qd5+ {[%emt 0:02:23]} Ke8 {[%emt 0:00:54]} 45. Qg8+ {[%emt 0:00:06]} Kd7 {[%emt 0:00:26]} 46. Qd5+ {[%emt 0:00:01]} Ke8 {[%emt 0:00:46]} 47. Qg8+ {[%emt 0:00:05]} Kd7 {[%emt 0:00:15]} 48. Qd5+ 1/2-1/2

[Event "19th IPCA WCC 2019"]
[Site "Ruzomberok"]
[Date "2019.07.01"]
[Round "4.3"]
[White "Shashikant, Kutwal"]
[Black "Jurkiewicz, Krzysztof"]
[Result "1-0"]
[ECO "B75"]
[WhiteElo "2176"]
[BlackElo "2275"]
[Annotator "NA"]
[PlyCount "65"]
[EventDate "2019.06.28"]
[EventType "swiss"]
[EventCountry "SVK"]
[SourceTitle "playchess.com"]
[Source "ChessBase"]
[SourceQuality "1"]
[TimeControl "5400+30"]

1. e4 {[%emt 0:00:00]} c5 {[%emt 0:00:00]} 2. Nf3 {[%emt 0:00:00]} d6 {[%emt 0:00:00]} 3. d4 {[%emt 0:00:05]} cxd4 {[%emt 0:00:00]} 4. Nxd4 {[%emt 0:00:13]} Nf6 {[%emt 0:00:00]} 5. Nc3 {[%emt 0:00:07]} g6 {[%emt 0:00:00]} 6. Be3 {[%emt 0:00:27]} Bg7 {[%emt 0:00:00]} 7. f3 {[%emt 0:00:25]} a6 {[%emt 0:01:17]} 8. Qd2 {[%emt 0:01:15]} Nbd7 {[%emt 0:00:15]} 9. a4 {[%emt 0:10:52]} b6 {[%emt 0:02:30]} 10. Nd5 {[%emt 0:04:32]} Bb7 {[%emt 0:01:19]} 11. c4 {[%emt 0:00:52]} O-O {[%emt 0:13:59]} 12. Be2 {[%emt 0:02:35]} e6 {[%emt 0:09:58]} 13. Nxf6+ {[%emt 0:08:21]} Qxf6 {[%emt 0:04:36]} 14. O-O {[%emt 0:14:46]} d5 {[%emt 0:02:57]} 15. exd5 {[%emt 0:16:20]} exd5 {[%emt 0:00:24]} 16. cxd5 {[%emt 0:00:11]} Bxd5 {[%emt 0:02:45]} 17. a5 {[%emt 0:04:48]} b5 {[%emt 0:02:11]} 18. Nxb5 {[%emt 0:06:36]} Qxb2 {[%emt 0:02:23]} 19. Qxb2 {[%emt 0:02:45]} Bxb2 {[%emt 0:00:12]} 20. Nc7 {[%emt 0:02:11]} Bxa1 {[%emt 0:05:50]} 21. Rxa1 {[%emt 0:00:34]} Be6 {[%emt 0:01:02]} 22. Nxa8 {[%emt 0:00:18]} Rxa8 {[%emt 0:00:06]} 23. Rc1 {[%emt 0:00:55]} Nf8 {[%emt 0:09:08]} 24. Rc6 {[%emt 0:03:08]} Bc8 {[%emt 0:00:23]} 25. Bd4 {[%emt 0:01:21]} Ne6 {[%emt 0:00:28]} 26. Bf6 {[%emt 0:00:14]} Kf8 {[%emt 0:06:30]} 27. Kf2 {[%emt 0:04:29]} Ke8 {[%emt 0:00:17]} 28. Rd6 {[%emt 0:00:12]} Bb7 {[%emt 0:01:32]} 29. Bc4 {[%emt 0:02:34]} Nc7 {[%emt 0:15:07]} 30. g4 {[%emt 0:05:40]} Rc8 {[%emt 0:05:22]} 31. g5 {[%emt 0:02:42]} Kf8 {[%emt 0:05:42]} 32. Rd7 {[%emt 0:01:23]} Ke8 {[%emt 0:03:31]} 33. Re7+ {[%emt 0:00:15]} 1-0

[Event "19th IPCA WCC 2019"]
[Site "Ruzomberok"]
[Date "2019.07.01"]
[Round "4.4"]
[White "Nowak, Lukasz"]
[Black "Valenta, Vit"]
[Result "0-1"]
[ECO "E71"]
[WhiteElo "2267"]
[BlackElo "2147"]
[Annotator "NA"]
[PlyCount "82"]
[EventDate "2019.06.28"]
[EventType "swiss"]
[EventCountry "SVK"]
[SourceTitle "playchess.com"]
[Source "ChessBase"]
[SourceQuality "1"]
[TimeControl "5400+30"]

1. d4 {[%emt 0:00:00]} Nf6 {[%emt 0:00:00]} 2. c4 {[%emt 0:00:00]} g6 {[%emt 0:00:29]} 3. Nc3 {[%emt 0:00:00]} Bg7 {[%emt 0:00:04]} 4. e4 {[%emt 0:00:05]} d6 {[%emt 0:00:05]} 5. h3 {[%emt 0:00:09]} Nbd7 {[%emt 0:00:30]} 6. Be3 {[%emt 0:03:50]} e5 {[%emt 0:00:38]} 7. d5 {[%emt 0:00:33]} Nc5 {[%emt 0:02:14]} 8. f3 {[%emt 0:03:02]} Nh5 {[%emt 0:00:34]} 9. Nge2 {[%emt 0:00:46]} f5 {[%emt 0:02:59]} 10. Qd2 {[%emt 0:29:46]} fxe4 {[%emt 0:02:09]} 11. fxe4 {[%emt 0:00:23]} Qh4+ {[%emt 0:05:32]} 12. g3 {[%emt 0:00:27]} Nxg3 {[%emt 0:02:35]} 13. Bg5 {[%emt 0:13:16]} Nxf1+ {[%emt 0:00:51]} 14. Bxh4 {[%emt 0:00:23]} Nxd2 {[%emt 0:00:04]} 15. Kxd2 {[%emt 0:00:11]} O-O {[%emt 0:10:17]} 16. b4 {[%emt 0:01:33]} Na6 {[%emt 0:00:10]} 17. a3 {[%emt 0:00:35]} Rf3 {[%emt 0:05:31]} 18. Bg3 {[%emt 0:02:15]} Bh6+ {[%emt 0:02:32]} 19. Kc2 {[%emt 0:00:23]} Bd7 {[%emt 0:01:09]} 20. h4 {[%emt 0:00:29]} Bg4 {[%emt 0:01:18]} 21. Rhg1 {[%emt 0:02:55]} Bh5 {[%emt 0:08:36]} 22. Raf1 {[%emt 0:03:28]} Raf8 {[%emt 0:01:38]} 23. Rxf3 {[%emt 0:00:50]} Rxf3 {[%emt 0:02:16]} 24. Be1 {[%emt 0:01:50]} Be3 {[%emt 0:09:18]} 25. Rg3 {[%emt 0:01:32]} Kf7 {[%emt 0:06:38]} 26. Rxf3+ {[%emt 0:02:09]} Bxf3 {[%emt 0:00:02]} 27. Kd3 {[%emt 0:00:21]} Bb6 {[%emt 0:02:58]} 28. Na4 {[%emt 0:15:12]} Bxe2+ {[%emt 0:01:15]} 29. Kxe2 {[%emt 0:00:06]} Bd4 {[%emt 0:00:08]} 30. Bf2 {[%emt 0:03:39]} Bxf2 {[%emt 0:03:06]} 31. Kxf2 {[%emt 0:00:10]} Nb8 {[%emt 0:00:07]} 32. c5 {[%emt 0:03:21]} Kf6 {[%emt 0:04:18]} 33. Kg3 {[%emt 0:05:50]} h5 {[%emt 0:02:45]} 34. cxd6 {[%emt 0:02:56]} cxd6 {[%emt 0:00:10]} 35. Nb2 {[%emt 0:00:13]} b5 {[%emt 0:05:09]} 36. a4 {[%emt 0:00:31]} bxa4 {[%emt 0:02:13]} 37. Nxa4 {[%emt 0:00:05]} Na6 {[%emt 0:00:17]} 38. b5 {[%emt 0:00:58]} Nc5 {[%emt 0:00:56]} 39. Nxc5 {[%emt 0:02:26]} dxc5 {[%emt 0:00:03]} 40. Kf3 {[%emt 0:00:09]} g5 {[%emt 0:00:34]} 41. hxg5+ {[%emt 0:01:34]} Kxg5 {[%emt 0:00:18]} 0-1

[Event "19th IPCA WCC 2019"]
[Site "Ruzomberok"]
[Date "2019.07.01"]
[Round "4.5"]
[White "Kozicz, Andrzej"]
[Black "Babula, Milan"]
[Result "0-1"]
[ECO "B06"]
[WhiteElo "1979"]
[BlackElo "2220"]
[Annotator "NA"]
[PlyCount "98"]
[EventDate "2019.06.28"]
[EventType "swiss"]
[EventCountry "SVK"]
[SourceTitle "playchess.com"]
[Source "ChessBase"]
[SourceQuality "1"]
[TimeControl "5400+30"]

1. e4 {[%emt 0:00:00]} g6 {[%emt 0:00:00]} 2. d4 {[%emt 0:00:04]} Bg7 {[%emt 0:00:00]} 3. c3 {[%emt 0:00:14]} d6 {[%emt 0:00:23]} 4. Bd3 {[%emt 0:00:04]} Nd7 {[%emt 0:04:28]} 5. Nd2 {[%emt 0:00:38]} e5 {[%emt 0:00:58]} 6. Ne2 {[%emt 0:01:16]} Ngf6 {[%emt 0:02:39]} 7. Ng3 {[%emt 0:01:06]} b6 {[%emt 0:05:44]} 8. O-O {[%emt 0:01:07]} O-O {[%emt 0:03:19]} 9. Nb3 {[%emt 0:00:57]} Bb7 {[%emt 0:00:43]} 10. Bg5 {[%emt 0:02:18]} h6 {[%emt 0:02:00]} 11. Bd2 {[%emt 0:00:24]} Re8 {[%emt 0:04:33]} 12. Re1 {[%emt 0:00:49]} Rc8 {[%emt 0:04:21]} 13. Rc1 {[%emt 0:01:06]} d5 {[%emt 0:13:11]} 14. exd5 {[%emt 0:03:58]} Nxd5 {[%emt 0:01:42]} 15. Bb1 {[%emt 0:07:27]} exd4 {[%emt 0:04:45]} 16. Nxd4 {[%emt 0:01:22]} a6 {[%emt 0:09:04]} 17. Rxe8+ {[%emt 0:02:31]} Qxe8 {[%emt 0:00:02]} 18. Nf3 {[%emt 0:01:14]} Nf8 {[%emt 0:08:16]} 19. Qb3 {[%emt 0:01:40]} Ne6 {[%emt 0:03:23]} 20. Re1 {[%emt 0:01:19]} Qd7 {[%emt 0:05:09]} 21. Qc4 b5 {[%emt 0:06:45]} 22. Qh4 {[%emt 0:07:07]} Qd8 {[%emt 0:04:07]} 23. Qxd8+ {[%emt 0:03:21]} Rxd8 {[%emt 0:00:01]} 24. Bxg6 {[%emt 0:03:53]} fxg6 {[%emt 0:00:01]} 25. Rxe6 Kf7 26. Re1 {[%emt 0:06:02]} Nb6 {[%emt 0:01:20]} 27. Bf4 {[%emt 0:00:35]} Bxf3 {[%emt 0:01:55]} 28. Bxc7 {[%emt 0:03:24]} Rd2 {[%emt 0:00:03]} 29. gxf3 {[%emt 0:09:02]} Nd5 {[%emt 0:00:31]} 30. Ne4 {[%emt 0:06:42]} Rxb2 {[%emt 0:00:40]} 31. Nd6+ {[%emt 0:03:46]} Kg8 {[%emt 0:00:03]} 32. Re8+ {[%emt 0:02:00]} Bf8 {[%emt 0:00:01]} 33. Bd8 {[%emt 0:01:51]} Rxa2 {[%emt 0:03:56]} 34. h3 {[%emt 0:01:42]} Kg7 {[%emt 0:05:23]} 35. Ne4 {[%emt 0:07:03]} Kf7 {[%emt 0:02:07]} 36. Re5 {[%emt 0:00:16]} Ra1+ {[%emt 0:01:02]} 37. Kh2 {[%emt 0:00:08]} Rd1 {[%emt 0:00:27]} 38. Ba5 {[%emt 0:00:41]} Be7 {[%emt 0:01:05]} 39. Kg2 {[%emt 0:01:26]} g5 {[%emt 0:01:59]} 40. Kh2 {[%emt 0:01:23]} Rd3 {[%emt 0:00:41]} 41. Kg3 {[%emt 0:00:41]} Rd1 {[%emt 0:01:10]} 42. Kh2 {[%emt 0:00:48]} Nf4 {[%emt 0:01:16]} 43. Bc7 {[%emt 0:01:10]} Ng6 {[%emt 0:00:17]} 44. Rf5+ {[%emt 0:01:25]} Ke6 {[%emt 0:00:11]} 45. Ng3 h5 {[%emt 0:00:56]} 46. c4 {[%emt 0:00:14]} h4 {[%emt 0:00:15]} 47. Rd5 {[%emt 0:00:15]} hxg3+ {[%emt 0:00:03]} 48. fxg3 {[%emt 0:00:23]} Rxd5 {[%emt 0:00:02]} 49. cxd5+ {[%emt 0:00:18]} Kxd5 {[%emt 0:00:01]} 0-1